Cogmind - Beta 12 @@@ ROGUE MODE // 2023.09.11 @ 19:37:15 Player: Eddbot Result: Destroyed by S-10 Pest with Light Assault Rifle Performance ------------- Evolutions (1) 500 Regions Visited (3) 600 Robots Destroyed (37) 185 Value Destroyed (510) 510 Prototype IDs (1) 20 Alien Tech Used (0) 0 Bonus (0) 0 TOTAL SCORE: 1815 Bonus ------- None Cogmind --------- Core Integrity 0/400 Matter 234/300 Energy 100/100 System Corruption 0% Temperature Cool (0) Movement Core (400) Ox7 Location -9/Materials Parts ------- > --- POWER (1) -------- (None) > --- PROPULSION (2) --- (None) > --- UTILITY (4) ------ Large Storage Unit Visual Processing Unit Signal Interpreter > --- WEAPON (2) ------- Autogun > --- INVENTORY (15) --- Improved Terrain Scanner Peak State ------------ > --- POWER ------------ Ion Engine > --- PROPULSION ------- Compact Wheel Compact Wheel > --- UTILITY ---------- Large Storage Unit Visual Processing Unit Signal Interpreter Improved Terrain Scanner > --- WEAPON ----------- Advanced Beam Cannon > --- INVENTORY -------- Improved Terrain Scanner Medium Laser [Rating: 13] Favorites ----------- Power Ion Engine Engine Ion Engine Propulsion Wheel Wheel Wheel Utility Improved Terrain Scanner Device Improved Terrain Scanner Storage Large Storage Unit Processor Signal Interpreter Hackware Hacking Suite Weapon EM Pulse Gun Energy Gun EM Pulse Gun Energy Cannon Advanced Beam Cannon Ballistic Gun Assault Rifle Special Weapon Mining Laser Special Melee Weapon Datajack Build | -11 -10 -10 -9 ------- Run | Jun Mat Min Mat Slots Evolved 2 | . . . 2 Power . | . . . . Propulsion . | . . . . Utility 2 | . . . 2 Weapon . | . . . . Parts Attached 41 | 9 19 7 6 Power 5 | 1 2 1 1 Engine 5 | 1 2 1 1 Core . | . . . . Reactor . | . . . . Propulsion 8 | 3 2 3 . Treads . | . . . . Leg . | . . . . Wheel 8 | 3 2 3 . Hover . | . . . . Flight . | . . . . Utility 7 | 2 2 1 2 Device 2 | 1 . 1 . Storage 2 | 1 1 . . Processor 2 | . . . 2 Hackware 1 | . 1 . . Protection . | . . . . Artifact . | . . . . Weapon 21 | 3 13 2 3 Energy Gun 10 | 2 6 1 1 Energy Cannon 1 | . . . 1 Ballistic Gun 6 | 1 3 1 1 Ballistic Cannon . | . . . . Launcher . | . . . . Special Weapon 3 | . 3 . . Impact Weapon . | . . . . Slashing Weapon . | . . . . Piercing Weapon . | . . . . Special Melee Weapon 1 | . 1 . . Unidentified Prototypes 1 | . . . 1 Parts Lost 19 | . 5 6 8 Power 3 | . 1 . 2 Propulsion 7 | . 2 3 2 Utility 1 | . . . 1 Weapon 8 | . 2 3 3 Highest Loss Streak 8 | . 5 2 8 To Critical Strikes . | . . . . Average Slot Usage (%) 92 | . 97 93 65 Engine 12 | . 13 14 5 Wheel 25 | . 26 27 11 Device 10 | . 10 12 4 Storage 13 | . 14 14 11 Processor 2 | . . . 22 Hackware 2 | . 3 1 . Energy Gun 15 | . 19 14 4 Ballistic Gun 6 | . 5 8 2 Naked Turns . | . . . . Heaviest Build 30 | 14 30 29 27 Greatest Support 32 | 20 20 32 32 Greatest Overweight (x) 9 | . 9 2 7 Average Overweight (x) . | . . . . Largest Inventory Capacity 15 | 8 15 15 15 Average Capacity 12 | 7 12 15 15 Most Carried 13 | 7 13 11 4 Average Carried 7 | 3 9 7 1 Final Capacity 15 | 8 15 15 15 Final Carried 10 | 7 10 5 1 Class Distribution -------------------- 67% | Mutant 32% | Scavenger-Mutant Dominant Class ---------------- Mutant | -10/Materials Scavenger-Mutant | -10/Mines Mutant | -9/Materials Resources | -11 -10 -10 -9 ----------- Run | Jun Mat Min Mat Matter Collected 711 | 319 267 94 31 Remotely . | . . . . Salvage Created 1089 | 296 416 158 219 Parts 75 | 19 26 15 15 Haulers Intercepted 1 | . 1 . . Recyclers Shooed . | . . . . Parts Field Recycled . | . . . . Retrieved Matter . | . . . . Parts Self-Destructed . | . . . . Prevented . | . . . . Kills | -11 -10 -10 -9 ------- Run | Jun Mat Min Mat Combat Hostiles Destroyed 20 | . 7 6 7 Guns 15 | . 6 5 4 Cannons 3 | . . . 3 AOE 2 | . 1 1 . Classes Destroyed 9 | 3 5 . 1 Worker 4 | 2 2 . . Tunneler 7 | 7 . . . Hauler 1 | . 1 . . Recycler 3 | 1 1 . 1 Operator 1 | . 1 . . Watcher 1 | . 1 . . Swarmer 13 | . 3 4 6 Grunt 6 | . 4 2 . Sentry 1 | . . . 1 Best Kill Streak 6 | 3 4 6 4 Combat Bots Only 4 | . 3 3 4 Max Kills in Single Turn 2 | 1 2 1 1 Gunslinging . | . . . . Exploded 1 | . 1 1 . Melee . | . . . . Uniques/NPCs Destroyed . | . . . . Combat | -11 -10 -10 -9 -------- Run | Jun Mat Min Mat Damage Taken 1793 | . 528 327 938 Core 526 | . 95 29 402 Absorbed by Shields . | . . . . Core Remaining (%) 75 | 100 . 50 . Volleys Fired 125 | 29 52 12 32 Largest 2 | 2 2 2 1 Hottest 100 | 70 100 80 68 Shots Fired 194 | 58 87 17 32 Gun 170 | 58 81 17 14 Cannon 18 | . . . 18 Launcher . | . . . . Special 6 | . 6 . . Kinetic 80 | 29 33 4 14 Thermal 55 | 5 28 4 18 Explosive . | . . . . Electromagnetic 59 | 24 26 9 . Robot Hit Streak 12 | 9 6 5 12 Robot Miss Streak 3 | 3 3 2 3 Penetration Max . | . . . . Secondary Targets . | . . . . Shots Hit Robots 116 | 34 49 11 22 Core Hits 50 | 14 20 8 8 Critical Kills . | . . . . Critical Parts Destroyed . | . . . . Critical Strikes 5 | 2 2 1 . Burn 2 | . 2 . . Corrupt 3 | 2 . 1 . Melee Attacks 2 | . 2 . . Impact . | . . . . Slashing . | . . . . Piercing . | . . . . Sneak Attacks . | . . . . Combat Hostiles . | . . . . Follow-up Attacks . | . . . . Damage Inflicted 1740 | 395 733 208 404 Guns 1307 | 395 623 153 136 Cannons 268 | . . . 268 Explosions 141 | . 86 55 . Melee . | . . . . Ramming . | . . . . Kinetic 567 | 124 280 27 136 Thermal 651 | 50 245 88 268 Explosive . | . . . . Electromagnetic 522 | 221 208 93 . Impact . | . . . . Slashing . | . . . . Piercing . | . . . . Highest Corruption 4 | . 4 4 . Average Corruption 3 | . 3 4 . Corruption Purged . | . . . . Corruption Blocked . | . . . . Effects 11 | . 6 5 . Message Errors 1 | . 1 . . Matter Fused 5 | . 1 4 . Heat Flow Errors 2 | . 2 . . Energy Discharges 1 | . 1 . . Data Loss (minor) 1 | . 1 . . Data Loss (major) 1 | . . 1 . Overload Shots . | . . . . Overflow Damage 24 | . 22 . 2 Projectiles 2 | . . . 2 Explosions 22 | . 22 . . Melee . | . . . . Knockbacks . | . . . . Impact . | . . . . Kinetic . | . . . . Secondary . | . . . . Self-Inflicted Damage 19 | . . 19 . Shots 1 | . . 1 . Rammed . | . . . . Targets Rammed . | . . . . Kicked . | . . . . Crushed . | . . . . Highest Temperature 343 | 70 290 81 343 Average Temperature 69 | 21 55 44 198 Received Heat Transfer 300 | . 87 105 108 Effects 2 | . . . 2 Energy Bleed 2 | . . . 2 Siege Activations . | . . . . Robots Corrupted . | . . . . Combat Hostiles . | . . . . Parts Fried 1 | 1 . . . Impact Corruptions . | . . . . Robots Melted . | . . . . Combat Hostiles . | . . . . Parts Melted 2 | . . . 2 Heat Transferred 1459 | 148 655 175 481 Parts Sabotaged . | . . . . Parts Stolen . | . . . . Parts Stripped . | . . . . Power Chain Reactions 2 | . 1 1 . Missiles Intercepted . | . . . . Alert | -11 -10 -10 -9 ------- Run | Jun Mat Min Mat Peak Influence 209 | 50 209 209 127 Initial 32 | . 32 31 . Average 76 | 21 77 116 31 Maximum Alert Level 1 | . 1 1 . Low Security (%) 96 | 100 97 93 100 Level 1 3 | . 2 6 . Level 2 . | . . . . Level 3 . | . . . . Level 4 . | . . . . Level 5 . | . . . . High Security . | . . . . Max Security . | . . . . Squads Dispatched 2 | . 2 . . Investigation . | . . . . Extermination . | . . . . Reinforcement 2 | . 2 . . Assault . | . . . . Garrison . | . . . . Intercept . | . . . . Searches Triggered . | . . . . Construction Impeded . | . . . . Haulers Reinforced . | . . . . Active Scanning Responses . | . . . . Cargo Convoy Interrupts . | . . . . Stealth | -11 -10 -10 -9 --------- Run | Jun Mat Min Mat Distress Signals 3 | . 2 . 1 Communications Jammed . | . . . . Distress Signals . | . . . . Times Spotted 37 | . 16 11 10 Peak Tracking Total 6 | . 5 3 6 Tactical Retreats 3 | . 1 2 . Traps | -11 -10 -10 -9 ------- Run | Jun Mat Min Mat Traps Triggered 2 | . 2 . . Indirectly . | . . . . Trap Hack Attempts . | . . . . Triggered . | . . . . Disarmed . | . . . . Reprogrammed . | . . . . Reused . | . . . . Traps Extracted . | . . . . Installed . | . . . . Triggered . | . . . . Machines | -11 -10 -10 -9 ---------- Run | Jun Mat Min Mat Machines Disabled . | . . . . Max in Single Turn . | . . . . Machines Repaired . | . . . . Machines Sabotaged . | . . . . Overloaded Fab Kills . | . . . . Hacking | -11 -10 -10 -9 --------- Run | Jun Mat Min Mat Machines Accessed 6 | . 4 . 2 Terminals 5 | . 3 . 2 Fabricators . | . . . . Repair Stations . | . . . . Recycling Units 1 | . 1 . . Scanalyzers . | . . . . Garrison Access . | . . . . Total Hacks 18 | . 13 . 5 Successful 8 | . 5 . 3 Failed 10 | . 8 . 2 Catastrophic 1 | . . . 1 Database Lockouts . | . . . . Manual . | . . . . Terminals 15 | . 10 . 5 Fabricators . | . . . . Repair Stations . | . . . . Recycling Units 3 | . 3 . . Scanalyzers . | . . . . Garrison Access . | . . . . Terminal Hacks 7 | . 4 . 3 Record 2 | . . . 2 Emergency Access Points 1 | . 1 . . Alert Level 1 | . 1 . . Locate Traps 1 | . 1 . . Dispatch Records 1 | . 1 . . Zone Layout 1 | . . . 1 Fabricator Hacks . | . . . . Repair Station Hacks . | . . . . Recycling Unit Hacks 1 | . 1 . . Retrieve Components 1 | . 1 . . Scanalyzer . | . . . . Garrison Access Hacks . | . . . . Unauthorized Hacks . | . . . . Terminals . | . . . . Fabricators . | . . . . Repair Stations . | . . . . Recycling Units . | . . . . Scanalyzers . | . . . . Garrison Access . | . . . . Data Cores Recovered . | . . . . Used . | . . . . Hacking Detections 5 | . 4 . 1 Full Trace Events 1 | . . . 1 Feedback Events . | . . . . Feedback Blocked . | . . . . Robot Schematics Acquired . | . . . . Robots Built . | . . . . Authchips . | . . . . Time . | . . . . Total Robot Build Rating . | . . . . Part Schematics Acquired . | . . . . Parts Built . | . . . . Authchips . | . . . . Time . | . . . . Total Part Build Rating . | . . . . Parts Repaired . | . . . . Time . | . . . . Parts Recycled . | . . . . Recycled Matter . | . . . . Retrieved Matter . | . . . . Retrieved Components 2 | . 2 . . Parts Scanalyzed . | . . . . Part Schematics Acquired . | . . . . Parts Damaged . | . . . . Bothacking | -11 -10 -10 -9 ------------ Run | Jun Mat Min Mat Used RIF Installer . | . . . . Robots Hacked 1 | . 1 . . Non-combat . | . . . . Combat 1 | . 1 . . Robot Hacks Applied 1 | . 1 . . parse_system 1 | . 1 . . Relay Couplers Released . | . . . . Fabnet Peak Effective % . | . . . . Robots Rewired . | . . . . Allies Hacked . | . . . . Hacks Repelled . | . . . . Allies | -11 -10 -10 -9 -------- Run | Jun Mat Min Mat Total Allies . | . . . . Largest Group . | . . . . Highest-Rated Group . | . . . . Highest-Rated Ally . | . . . . Total Orders . | . . . . Ally Attacks . | . . . . Total Damage . | . . . . Kills . | . . . . Allies Corrupted . | . . . . Allies Melted . | . . . . Intel | -11 -10 -10 -9 ------- Run | Jun Mat Min Mat Robot Analysis Total . | . . . . Derelict Logs Recovered 2 | . . 2 . Drone Launches . | . . . . Drone Recoveries . | . . . . Exploration | -11 -10 -10 -9 ------------- Run | Jun Mat Min Mat Turns Passed 1281 | 230 507 426 118 Spaces Moved 807 | 149 300 315 43 Core 6 | 1 3 . 2 Treads . | . . . . Legs . | . . . . Wheels 801 | 148 297 315 41 Hover . | . . . . Flight . | . . . . Fastest Speed 50 | 50 80 100 100 Average Speed 96 | 83 91 105 113 Slowest Speed 500 | 100 500 115 400 Overloaded Moves . | . . . . Propulsion Burnouts . | . . . . Robots Hopped . | . . . . Cave-ins Triggered . | . . . . Exploration Rate (%) 32 | 5 41 77 8 Regions Visited 3 Branch Regions 1 Pre-discovered Areas 1 | . . 1 . Known Exits Taken . | . . . . Unknown Exits Taken 3 | 1 1 1 . Scrap Searched 2 | . . 2 . Spaces Dug 5 | . 5 . . Terrain Destroyed 10 | . 7 3 . Melee . | . . . . Projectile 5 | . 5 . . AOE 5 | . 2 3 . Terrain Rammed . | . . . . Walls Destroyed . | . . . . Machines Disabled . | . . . . Actions | -11 -10 -10 -9 --------- Run | Jun Mat Min Mat Total 1103 | 200 428 392 83 Wait 99 | . 43 56 . Move 804 | 148 299 314 43 Hop . | . . . . Pick Up 28 | 14 10 2 2 Fast Attach . | . . . . Attach 23 | 7 5 5 6 Detach . | . . . . Swap 18 | 2 14 2 . Drop 4 | . 3 1 . Fire 125 | 29 52 12 32 Melee 2 | . 2 . . Ram . | . . . . Kick . | . . . . Crush . | . . . . Escape Stasis . | . . . . Rewire . | . . . . Trap . | . . . . Miscellaneous . | . . . . Route ------- -11/Junkyard -10/Materials -10/Mines -9/Materials History --------- Turn | Location | Event 21 | -11/Junkyard | Discovered new exit (range 15) 231 | -11/Junkyard | Entered Materials 303 | -10/Materials | Build established: Mutant 424 | -10/Materials | Discovered new exit (range 14) 698 | -10/Materials | Lost 5 parts (1p2n2w) 738 | -10/Materials | Entered Mines 768 | -10/Mines | Learned location of Mines (-9) 1042 | -10/Mines | Learned Materials trap positions 1129 | -10/Mines | Build established: Scavenger-Mutant 1149 | -10/Mines | Discovered new exit (range 9) 1164 | -10/Mines | Entered Materials 1164 | -9/Materials | Evolved 2 slots: Utility x2 1165 | -9/Materials | Loaded intel: 13 trap records 1252 | -9/Materials | Core integrity fell below 50% 1263 | -9/Materials | Core integrity fell below 20% 1282 | -9/Materials | Destroyed by S-10 Pest with Light Assault Rifle Last Messages --------------- 01236_ R-06 Scavenger destroyed. 01237_ Acquired 21 matter. 01238_ R-06 Scavenger collects Lgt. Treads. 01239_ Com. Wheel destroyed. 01239_ C-30 ARC bursts open, deploying its payload. 01239_ S-10 Pest unfolds itself. 01240_ Destroyed Flight Unit. 01241_ Overheating: Energy bleed (-7). 01241_ R-06 Scavenger collects Heat Sink. 01244_ Destroyed Flight Unit. 01245_ Adv. Beam Cannon destroyed. 01246_ Overheating: Energy bleed (-11). 01247_ Acquired 10 matter. 01255_ Acquired Autogun. 01256_ Med. Laser destroyed. 01257_ S-10 Pest destroyed. 01262_ U-05 Engineer builds a Door. 01263_ S-10 Pest destroyed. 01270_ U-05 Engineer builds a Door. 01274_ S-10 Pest destroyed. Map ----- +----------------------------------------------------+ | ????? #?????????# # #????? | | ????? #?????????# # """ #????? | | ????? ##????????# + """ #????? | | ????? #?????????# # """ #????? | | ????? #?????????# # #????? | | ????? #?????????# ########????? | | ????? #?????#?#?# #???????????? | | ????? #?????????# #???????????? | | ????? #?????????# #???????????? | | ????? #?????????# #??????#????? | | ????? #?????????# #???????????? | | ????? #?????????# #????#??????? | | ????? #?????????# #???????????? | | ????? #????????## ##???#??????? | | ????? #?????????# T#???##?????# | | ????? #?????????# ##??????????? | | ????? #????#????# #???????????? | | ????? #???????#?# #???????????? | | ????? #?????????# #??????????#? | | ????? #??######## #???????????? | | ????? #??# # #???????????? | | ????? #### # #???????????? | | ????? + # #???????????? | | ?????##### + #???????????? | | ?????????# # ###########?? | | ?????????# # ##%[*@ #?? | | ?????????######## ##=%=% ##? | | ?????########### #%=** #?? | | ?????#T## #=%s["" #?? | | ??? "+%%% """ #?? | | ??? "%# %* S" #?? | | ???? """ #### "# """ #?? | | ???????"" ????## ## """ #?? | | ???????"" ??????# ## #?? | | ??????? ???????# ###########?? | | ?????? ????????# #???????????? | | ?????? ?????????# ????????????? | | ????????????????# ????????????? | | ????????????????# ????????????? | | ????????????????# ???? ???????? | | ????????????????# ????????????? | | ????????????????# ??? ????????? | | ????????????????+ ????????????? | | ????????????????# ????????????? | | ????????????????# ?????????????? | | ????????????????????????????????? | | ????????????????????????????????? | | ????????????????????????????????? | | ????????????????????????????????? | | ????????????????????????????????? | +----------------------------------------------------+ Best States ------------- Heat Dissipation 28 Energy Generation 10 Energy Capacity 250 Matter Stores 300 Matter Capacity 300 Sight Range 18 Terrain Scan Range 16 Terrain Scan Density 10 Evasion (%) 44 Offensive Hacking 10 Item Schematics ----------------- None Robot Schematics ------------------ None Fabricated ------------ Nothing Alien Tech Used ----------------- None Achievements -------------- None Challenges ------------ None Game ------ Seed PlasmaThermoelectricStorage Manual? 0 Play Time 00:19:39 Cumulative 32.4 hours Start 2023.09.11 @ 19:19:03 End 2023.09.11 @ 19:37:15 Sessions 1 Manual Loads 0 Difficulty Rogue Special Mode None Game No. 70 Rogue 70 Adventurer 0 Explorer 0 Win Type - Total 0 Types 0/0/0/0/0/0/0/0/0 Lore% 25 Gallery% 26 Achievement% 23 Wizard Run 0 Options --------- ASCII 0 Keyboard 0 Movement Mouse Keybinds 0 Fullscreen 1 Font 18/SmallcapsGlow Map View 76x50 Tactical HUD 1 Map Filters NONE Filters NONE Steam 1 RUN: 42e8c951-a178-47c6-a43f-f169cbca0f66